Cogmind - Beta 12 @@@ ROGUE MODE // 2023.12.15 @ 05:33:46 Player: puppuppit Result: Destroyed by H-88 Terminator with KE Penetrator Performance ------------- Evolutions (9) 4500 Regions Visited (21) 4200 Robots Destroyed (111) 555 Value Destroyed (3964) 3964 Prototype IDs (62) 1240 Alien Tech Used (7) 1400 Bonus (4897) 4897 TOTAL SCORE: 20756 Bonus ------- Triggered Max Security 1000 High Alert Combat Kills 410 Follower Combat Kills 1731 Entered Garrisons 200 Used RIF Installer 500 Entered DSFs 500 Aligned with FarCom 300 Met Data Miner 300 Scanned by Researcher 500 Friendly Fire -544 Cogmind --------- Core Integrity 0/1600 Matter 62/300 Energy 88/100 System Corruption 3% Temperature Cool (2) Movement Hovering (40) Location -1/Access Parts ------- > --- POWER (2) -------- (None) > --- PROPULSION (6) --- Linear Gravjet > --- UTILITY (15) ----- (None) > --- WEAPON (2) ------- (None) > --- INVENTORY (5) ---- Micro Antimatter Reactor Reaction Control System Advanced Reaction Control System Hardlight Generator Improved System Restoration Module Peak State ------------ > --- POWER ------------ Micro Antimatter Reactor Micro Antimatter Reactor > --- PROPULSION ------- Field Propulsion Array Impulse Thruster Array > --- UTILITY ---------- Advanced Heat Sink Gravity Neutralizer 0b10 Decoder Chip [Generic] Advanced Targeting Computer Advanced Target Analyzer Advanced Target Analyzer Phase Armor Improved Hacking Suite Improved Hacking Suite Advanced Hacking Suite System Shield Advanced Corruption Screen > --- WEAPON ----------- Heavy Mass Driver > --- INVENTORY -------- Enhanced Optical Array Improved Transmission Jammer Advanced Reaction Control System Improved Core Shielding Improved System Restoration Module [Rating: 148] Favorites ----------- Power Micro Nuclear Core Engine Light Deuterium Engine Power Core Micro Nuclear Core Reactor Micro Antimatter Reactor Propulsion VTOL Module Wheel Wheel Hover Unit Airjet Flight Unit VTOL Module Utility Advanced Targeting Computer Device Advanced Weight Redist. System Storage Compact Matter Pod Processor Advanced Targeting Computer Hackware Improved Hacking Suite Protection Utility Shielding Artifact Phase Armor Weapon Hypervelocity Gauss Rifle Energy Gun Arc Projector Ballistic Gun Hypervelocity Gauss Rifle Ballistic Cannon Heavy Mass Driver Launcher Mini Grenade Launcher Special Weapon Enhanced Flamer Special Melee Weapon Datajack Build | -11 -10 -10 -10 -9 -8 -7 -7 -7 -7 -6 -6 -6 -6 -5 -5 -5 -4 -3 -3 -2 -1 ------- Run | Jun Mat Min Exi Min Mat Fac Gar Fac DSF Fac Low Low Dat Pro Fac Ext Fac Res Qua Res Acc Slots Evolved 18 | . . . . . 4 2 . . . 2 . . . . 2 . 2 2 . 2 2 Power 1 | . . . . . . 1 . . . . . . . . . . . . . . . Propulsion 4 | . . . . . . 1 . . . . . . . . 1 . . . . . 2 Utility 13 | . . . . . 4 . . . . 2 . . . . 1 . 2 2 . 2 . Weapon . | . . . . . . . . . . . . . . . . . . . . . . Parts Attached 313 | 5 . 13 . 3 39 51 13 . 5 42 3 21 . 1 14 24 13 27 15 18 6 Power 48 | 1 . 3 . . 4 9 2 . 1 5 . 2 . . . 7 3 3 4 . 4 Engine 15 | 1 . 2 . . 2 3 . . . 3 . . . . . 4 . . . . . Core 22 | . . 1 . . 2 6 2 . 1 2 . 2 . . . 3 3 . . . . Reactor 11 | . . . . . . . . . . . . . . . . . . 3 4 . 4 Propulsion 56 | 2 . 6 . . 10 9 3 . 1 7 2 4 . 1 2 . 2 1 1 4 1 Treads . | . . . . . . . . . . . . . . . . . . . . . . Leg . | . . . . . . . . . . . . . . . . . . . . . . Wheel 13 | 2 . 6 . . 5 . . . . . . . . . . . . . . . . Hover 14 | . . . . . 5 4 . . . . . . . 1 . . . . . 3 1 Flight 29 | . . . . . . 5 3 . 1 7 2 4 . . 2 . 2 1 1 1 . Utility 133 | . . 4 . . 18 19 2 . 2 15 1 9 . . 12 6 7 17 10 10 1 Device 70 | . . 3 . . 8 11 . . . 7 . 4 . . 8 1 4 8 7 8 1 Storage 1 | . . . . . . . . . . . . . . . . 1 . . . . . Processor 21 | . . 1 . . 2 2 1 . . 4 . 1 . . 2 3 . 3 1 1 . Hackware 14 | . . . . . . 1 1 . 2 3 1 . . . 2 . 1 2 . 1 . Protection 26 | . . . . . 8 5 . . . 1 . 4 . . . 1 2 4 1 . . Artifact 1 | . . . . . . . . . . . . . . . . . . . 1 . . Weapon 76 | 2 . . . 3 7 14 6 . 1 15 . 6 . . . 11 1 6 . 4 . Energy Gun 16 | . . . . . . 8 . . . . . 4 . . . 2 . 2 . . . Energy Cannon . | . . . . . . . . . . . . . . . . . . . . . . Ballistic Gun 20 | 2 . . . 1 3 . . . 1 7 . . . . . 3 1 2 . . . Ballistic Cannon 20 | . . . . . . 1 4 . . 4 . 2 . . . 3 . 2 . 4 . Launcher 3 | . . . . 1 1 1 . . . . . . . . . . . . . . . Special Weapon 14 | . . . . 1 3 4 2 . . 1 . . . . . 3 . . . . . Impact Weapon . | . . . . . . . . . . . . . . . . . . . . . . Slashing Weapon . | . . . . . . . . . . . . . . . . . . . . . . Piercing Weapon . | . . . . . . . . . . . . . . . . . . . . . . Special Melee Weapon 3 | . . . . . . . . . . 3 . . . . . . . . . . . Unidentified Prototypes 20 | . . . . . 2 2 . . . 3 . . . . . . 1 2 6 3 1 Corrupted Parts 2 | . . . . . . 1 1 . . . . . . . . . . . . . . System Corruption 2 | . . . . . . 1 1 . . . . . . . . . . . . . . Parts Lost 84 | . . 1 . . 5 17 1 . 4 4 . 5 . 13 2 1 . 7 9 4 11 Power 9 | . . . . . 1 2 . . 1 . . . . 2 1 1 . 1 . . . Propulsion 25 | . . 1 . . 1 5 1 . 1 4 . 2 . 4 . . . . 2 2 2 Utility 34 | . . . . . 2 5 . . 1 . . 1 . 5 . . . 4 6 2 8 Weapon 16 | . . . . . 1 5 . . 1 . . 2 . 2 1 . . 2 1 . 1 Highest Loss Streak 12 | . . 1 . . 2 12 1 . 4 2 . 3 . 9 1 1 . 3 7 2 6 To Critical Strikes 1 | . . . . . . . . . . . . . . . . . . . . . 1 Average Slot Usage (%) 82 | . 71 87 100 100 90 85 89 92 81 83 93 87 100 77 59 80 88 83 77 36 32 Engine 3 | . 14 11 . . 5 7 . . . 1 . . . . 5 1 1 . . . . Core 5 | . . 2 14 14 2 6 15 15 11 5 6 9 13 5 . 4 8 5 . . . Wheel 5 | . 28 28 28 28 12 . . . . . . . . . . . . . . . . Hover 2 | . . . . . 5 12 . . . . . . . . . . . . . 1 4 Flight 8 | . . . . . . 3 23 23 17 15 20 18 20 11 7 11 9 9 8 2 . Device 11 | . . 8 14 14 14 14 7 7 7 8 13 8 13 9 12 9 11 11 16 5 3 Processor 16 | . . 7 14 14 11 8 22 15 15 22 26 24 20 19 17 24 21 17 22 14 12 Hackware 7 | . . . . . . . 7 15 12 15 13 13 13 12 2 11 12 20 16 8 8 Protection 7 | . . . . . 21 18 7 7 7 3 . 2 6 6 4 2 5 3 . . . Energy Gun 1 | . . . . . . 3 . . . . . 3 13 10 6 2 . 1 . . . Ballistic Gun 6 | . 28 28 28 13 5 . . . 4 7 13 2 . . . 6 10 4 . . . Launcher 1 | . . . . 9 7 3 . . . . . . . . . . . . . . . Special Weapon 1 | . . . . 5 2 3 . . . . . . . . . . . . . . . Naked Turns 23 | . . . . . . . . . . . . . . . . . . . . . 23 Heaviest Build 45 | 5 5 8 8 12 26 27 20 18 18 25 22 22 17 17 17 30 34 42 45 10 17 Greatest Support 43 | 26 26 26 20 20 29 33 21 21 21 27 26 28 22 24 30 42 42 43 43 21 19 Greatest Overweight (x) 3 | . . . . . 1 3 . . . 1 . . . . . 1 . . 2 2 2 Average Overweight (x) . | . . . . . . . . . . . . . . . . . . . . . . Largest Inventory Capacity 5 | 5 5 5 5 5 5 5 5 5 5 5 5 5 5 5 5 5 5 5 5 5 5 Average Capacity 5 | 5 5 5 5 5 5 5 5 5 5 5 5 5 5 5 5 5 5 5 5 5 5 Most Carried 5 | . 1 5 5 5 5 5 5 5 5 5 5 5 5 5 5 5 5 5 5 5 5 Average Carried 4 | . . 3 4 4 4 4 4 5 4 4 4 4 5 5 4 4 4 4 4 4 4 Final Capacity 5 | 5 5 5 5 5 5 5 5 5 5 5 5 5 5 5 5 5 5 5 5 5 5 Final Carried 5 | . 1 5 5 5 5 5 5 5 4 5 5 5 5 5 4 5 5 5 5 4 5 Class Distribution -------------------- 25% | Mutant 21% | Hacker-Mutant 11% | Scavenger-Mutant 10% | Scavenger-Sprinter 6% | Scavenger-Skirmisher 6% | Hacker-Sprinter 5% | Hacker-Scout 4% | Sprinter 3% | Commander-Mutant Dominant Class ---------------- Mutant | -10/Materials Scavenger-Mutant | -10/Mines Scavenger-Mutant | -10/Exiles Scavenger-Skirmisher | -9/Mines Scavenger-Mutant | -8/Materials Mutant | -7/Factory Scavenger-Sprinter | -7/Garrison Scavenger-Sprinter | -7/Factory Sprinter | -7/DSF Hacker-Mutant | -6/Factory Hacker-Sprinter | -6/Lower Caves Scavenger-Sprinter | -6/Lower Caves Scavenger-Sprinter | -6/Data Miner Derelict-Sprinter | -5/Proximity Caves Mutant | -5/Factory Hacker-Scout | -5/Extension Hacker-Mutant | -4/Factory Hacker-Mutant | -3/Research Hacker-Mutant | -3/Quarantine Hacker-Mutant | -2/Research Hacker-Mutant | -1/Access Resources | -11 -10 -10 -10 -9 -8 -7 -7 -7 -7 -6 -6 -6 -6 -5 -5 -5 -4 -3 -3 -2 -1 ----------- Run | Jun Mat Min Exi Min Mat Fac Gar Fac DSF Fac Low Low Dat Pro Fac Ext Fac Res Qua Res Acc Matter Collected 5512 | 237 . 277 . 17 684 568 482 . 143 733 130 345 . . . 544 44 367 713 203 25 Remotely 763 | . . . . . . . . . . . . . . . . . . . 713 50 . Salvage Created 4024 | . 14 74 . 15 677 249 230 . 82 1062 156 369 . 57 . 129 158 356 253 143 . Parts 241 | . . 2 . 4 56 11 9 . 3 53 10 23 . 1 . 6 10 34 13 6 . Haulers Intercepted 2 | . . . . . . . . . . 2 . . . . . . . . . . . Recyclers Shooed 5 | . . . . . 2 1 . . . 1 . . . . . . . . . 1 . Parts Field Recycled . | . . . . . . . . . . . . . . . . . . . . . . Retrieved Matter . | . . . . . . . . . . . . . . . . . . . . . . Parts Self-Destructed 39 | . . . . . . . . . . . 9 20 . 10 . . . . . . . Prevented . | . . . . . . . . . . . . . . . . . . . . . . Kills | -11 -10 -10 -10 -9 -8 -7 -7 -7 -7 -6 -6 -6 -6 -5 -5 -5 -4 -3 -3 -2 -1 ------- Run | Jun Mat Min Exi Min Mat Fac Gar Fac DSF Fac Low Low Dat Pro Fac Ext Fac Res Qua Res Acc Combat Hostiles Destroyed 72 | . 1 5 . 4 16 4 6 . 1 8 4 9 . 1 . 2 2 5 2 2 . Guns 36 | . 1 5 . . 3 2 . . 1 5 4 5 . 1 . 2 2 5 . . . Cannons 15 | . . . . . . . 6 . . 1 . 4 . . . . . . 2 2 . AOE 20 | . . . . 4 13 1 . . . 2 . . . . . . . . . . . Classes Destroyed 17 | . 1 2 . . 7 . . . . 3 . 1 . . . . 1 1 1 . . Worker 8 | . . . . . 4 2 . . . . . . . . . . 2 . . . . Builder 5 | . . . . . 4 . . . . 1 . . . . . . . . . . . Tunneler 3 | . . . . . 2 1 . . . . . . . . . . . . . . . Hauler 2 | . . . . . . . . . . 2 . . . . . . . . . . . Recycler 10 | . . . . . 5 1 . . . 2 . . . . . . . . 1 1 . Operator 4 | . . . . . . . . . . 2 . . . . . 1 1 . . . . Watcher 6 | . . . . . 2 . . . . 3 . . . . . . . . 1 . . Swarmer 34 | . 1 . . 4 10 3 1 . . 3 3 5 . . . . 2 . 2 . . Grunt 14 | . . 1 . . 1 . 6 . 1 2 . 2 . 1 . . . . . . . Brawler 1 | . . . . . . . . . . . . 1 . . . . . . . . . Researcher 2 | . . . . . . . . . . . . . . . . . . . 2 . . Sentry 12 | . . . . . 4 1 . . . 3 1 1 . . . 2 . . . . . Hunter 1 | . . . . . 1 . . . . . . . . . . . . . . . . Programmer 7 | . . . . . . . . . . 1 . . . . . . . 4 . 2 . Heavy 1 | . . . . . . . . . . . . . . . . . . 1 . . . Assembled 4 | . . 4 . . . . . . . . . . . . . . . . . . . Butcher 1 | . . . . . . . . . . . . . . . . . 1 . . . . Best Kill Streak 9 | . 1 2 . 4 9 2 3 . 1 3 2 4 . 1 . 1 2 2 2 3 . Combat Bots Only 8 | . 1 2 . 4 8 2 3 . 1 1 2 4 . 1 . 1 2 2 2 2 . Max Kills in Single Turn 4 | . 1 1 . 4 4 1 1 . 1 2 1 1 . 1 . 1 1 1 1 1 . Gunslinging . | . . . . . . . . . . . . . . . . . . . . . . Exploded 4 | . . . . 4 3 1 . . . 1 . . . . . . . . . . . Melee . | . . . . . . . . . . . . . . . . . . . . . . Uniques/NPCs Destroyed . | . . . . . . . . . . . . . . . . . . . . . . Combat | -11 -10 -10 -10 -9 -8 -7 -7 -7 -7 -6 -6 -6 -6 -5 -5 -5 -4 -3 -3 -2 -1 -------- Run | Jun Mat Min Exi Min Mat Fac Gar Fac DSF Fac Low Low Dat Pro Fac Ext Fac Res Qua Res Acc Damage Taken 12045 | . . 248 . 93 739 1552 208 . 401 481 141 468 . 1079 122 709 143 1297 1657 552 2155 Core 4276 | . . 78 . 34 103 375 67 . 143 86 13 142 . 551 16 208 45 124 453 219 1619 Absorbed by Shields 279 | . . . . . . . . . 4 . . . . . . 35 . 83 157 . . Redirected to Shielding 203 | . . . . . 21 75 . . 15 7 . . . 47 . . . 38 . . . Regen/Repaired (Parts) 238 | . . . . . 109 29 . . . 9 . . . . . . 91 . . . . Core Remaining (%) 60 | 100 . . . 55 81 . . . 16 . . . . 6 . 77 96 . 32 84 . Volleys Fired 438 | . 2 23 . 4 68 49 32 . 20 54 8 34 . 3 . 27 24 29 31 26 4 Largest 2 | . 2 2 . 2 2 2 1 . 1 2 2 2 . 2 . 2 2 2 1 2 1 Hottest 162 | . 40 40 . 53 80 110 48 . 48 86 66 100 . 100 . 162 61 127 75 140 70 Shots Fired 604 | . 4 46 . 8 85 55 32 . 20 86 16 38 . 6 . 46 48 46 31 33 4 Gun 389 | . 4 46 . 5 47 36 . . 12 76 16 18 . 6 . 38 48 37 . . . Cannon 154 | . . . . . . . 31 . 8 10 . 20 . . . 8 . 9 31 33 4 Launcher 41 | . . . . 3 36 2 . . . . . . . . . . . . . . . Special 20 | . . . . . 2 17 1 . . . . . . . . . . . . . . Kinetic 461 | . 4 46 . 5 47 . 31 . 20 86 16 22 . . . 38 48 30 31 33 4 Thermal 61 | . . . . . 1 14 . . . . . 16 . 6 . 8 . 16 . . . Explosive 41 | . . . . 3 36 2 . . . . . . . . . . . . . . . Electromagnetic 36 | . . . . . . 36 . . . . . . . . . . . . . . . Robot Hit Streak 9 | . 3 4 . 2 8 7 7 . 5 7 8 5 . 7 . 9 6 9 6 4 . Robot Miss Streak 6 | . 1 5 . 1 5 3 2 . 2 4 2 1 . . . 4 6 3 3 2 . Penetration Max 1 | . . . . . . . . . . 1 . . . . . . 1 . . . . Secondary Targets 4 | . . . . . . . . . . . 1 1 . . . . 1 1 . . . Max Gunslinging Chain 1 | . . . . . . . . . . . 1 1 . . . . 1 1 . . . Shots Hit Robots 334 | . 3 23 . 2 38 40 22 . 14 57 10 17 . 6 . 26 23 29 13 11 . Core Hits 209 | . 2 11 . 5 63 18 11 . 3 31 8 10 . 2 . 17 9 11 3 5 . Critical Kills 21 | . . . . . . . . . . 11 4 4 . . . . 1 1 . . . Critical Parts Destroyed 13 | . . . . . . . . . . 10 1 . . . . 1 . 1 . . . Critical Strikes 43 | . . . . . . 2 . . . 22 5 5 . . . 2 1 2 1 3 . Burn 4 | . . . . . . 2 . . . . . 1 . . . 1 . . . . . Destroy 35 | . . . . . . . . . . 22 5 4 . . . 1 1 2 . . . Blast 4 | . . . . . . . . . . . . . . . . . . . 1 3 . Melee Attacks 6 | . . . . . . . . . . 6 . . . . . . . . . . . Impact . | . . . . . . . . . . . . . . . . . . . . . . Slashing . | . . . . . . . . . . . . . . . . . . . . . . Piercing . | . . . . . . . . . . . . . . . . . . . . . . Sneak Attacks . | . . . . . . . . . . . . . . . . . . . . . . Combat Hostiles . | . . . . . . . . . . . . . . . . . . . . . . Follow-up Attacks . | . . . . . . . . . . . . . . . . . . . . . . Damage Inflicted 9223 | . 23 194 . 278 2487 453 633 . 325 885 65 314 . 106 . 674 515 897 837 517 20 Guns 3717 | . 23 194 . 16 460 249 . . 231 466 65 161 . 106 . 477 515 754 . . . Cannons 2686 | . . . . . . . 633 . 94 112 . 153 . . . 197 . 143 837 517 . Explosions 2623 | . . . . 262 2015 39 . . . 307 . . . . . . . . . . . Melee . | . . . . . . . . . . . . . . . . . . . . . . Ramming 56 | . . . . . . 36 . . . . . . . . . . . . . . 20 Kinetic 5457 | . 23 194 . 16 460 . 633 . 325 578 65 159 . . . 560 515 575 837 517 . Thermal 1184 | . . . . . 12 168 . . . 307 . 155 . 106 . 114 . 322 . . . Explosive 2219 | . . . . 262 1957 . . . . . . . . . . . . . . . . Electromagnetic 307 | . . . . . 58 249 . . . . . . . . . . . . . . . Impact . | . . . . . . . . . . . . . . . . . . . . . . Slashing . | . . . . . . . . . . . . . . . . . . . . . . Piercing . | . . . . . . . . . . . . . . . . . . . . . . Highest Corruption 5 | . . . . . . 5 4 4 4 2 . . . 1 1 1 2 1 . . 3 Average Corruption 2 | . . . . . . 2 3 4 4 1 . . . 1 1 1 1 1 . . 2 Corruption Purged 9 | . . . . . . 5 . . . 2 . . . . . 1 . 1 . . . Corruption Blocked 3 | . . . . . . . . . . . . . . . . . . . . 3 . Effects 37 | . . . . . . 19 11 1 2 . . . . 1 1 . . 1 . . 1 Message Errors 6 | . . . . . . 3 1 . 1 . . . . . . . . . . . 1 Matter Fused 12 | . . . . . . 9 2 . 1 . . . . . . . . . . . . Heat Flow Errors 5 | . . . . . . 3 2 . . . . . . . . . . . . . . Energy Discharges 3 | . . . . . . . 2 . . . . . . 1 . . . . . . . Parts Rejected 2 | . . . . . . 2 . . . . . . . . . . . . . . . Data Loss (minor) 2 | . . . . . . 1 . . . . . . . . 1 . . . . . . Data Loss (major) 3 | . . . . . . . 2 1 . . . . . . . . . . . . . Misfires 1 | . . . . . . . 1 . . . . . . . . . . . . . . Alerts 1 | . . . . . . . . . . . . . . . . . . 1 . . . Weapon Failures 2 | . . . . . . 1 1 . . . . . . . . . . . . . . Overload Shots . | . . . . . . . . . . . . . . . . . . . . . . Overflow Damage 479 | . . . . . 156 . . . . 29 . . . . . . . 83 155 56 . Projectiles 294 | . . . . . . . . . . . . . . . . . . 83 155 56 . Explosions 185 | . . . . . 156 . . . . 29 . . . . . . . . . . . Melee . | . . . . . . . . . . . . . . . . . . . . . . Knockbacks 21 | . . . . . . 1 5 . . 1 . . . . . 1 . 2 6 5 . Impact 1 | . . . . . . 1 . . . . . . . . . . . . . . . Kinetic 20 | . . . . . . . 5 . . 1 . . . . . 1 . 2 6 5 . Secondary . | . . . . . . . . . . . . . . . . . . . . . . Self-Inflicted Damage 205 | . . . . 55 107 33 . . . . . . . . . . . . . . 10 Shots 9 | . . . . 2 6 1 . . . . . . . . . . . . . . . Rammed 5 | . . . . . . 3 . . . . . . . . . . . . 1 . 1 Targets Rammed 5 | . . . . . . 3 . . . . . . . . . . . . 1 . 1 Kicked . | . . . . . . . . . . . . . . . . . . . . . . Crushed . | . . . . . . . . . . . . . . . . . . . . . . Highest Temperature 360 | . . 40 . 32 40 324 229 . . 99 . 103 . 41 . 97 210 360 . . . Average Temperature 69 | . . 22 . 16 10 121 75 . . 21 . 32 . 15 . 25 78 83 . . . Received Heat Transfer 1247 | . . 120 . . 117 48 72 . 15 144 9 9 . 147 27 103 . 123 241 27 45 Effects 2 | . . . . . . 1 . . . . . . . . . . . 1 . . . Short Circuit 1 | . . . . . . 1 . . . . . . . . . . . . . . . Damage (minor) 1 | . . . . . . . . . . . . . . . . . . 1 . . . Siege Activations . | . . . . . . . . . . . . . . . . . . . . . . Robots Corrupted . | . . . . . . . . . . . . . . . . . . . . . . Combat Hostiles . | . . . . . . . . . . . . . . . . . . . . . . Parts Fried . | . . . . . . . . . . . . . . . . . . . . . . Impact Corruptions . | . . . . . . . . . . . . . . . . . . . . . . Robots Melted 1 | . . . . . . 1 . . . . . . . . . . . . . . . Combat Hostiles 1 | . . . . . . 1 . . . . . . . . . . . . . . . Parts Melted 4 | . . . . . . 2 . . . . . 1 . . . . . 1 . . . Heat Transferred 2968 | . . . . . 80 1330 . . . 300 . 407 . 222 . 259 . 370 . . . Parts Sabotaged 1 | . . . . . . . . . . . . . . . . . . . 1 . . Parts Stolen . | . . . . . . . . . . . . . . . . . . . . . . Parts Stripped . | . . . . . . . . . . . . . . . . . . . . . . Power Chain Reactions 1 | . . . . . . 1 . . . . . . . . . . . . . . . Missiles Intercepted . | . . . . . . . . . . . . . . . . . . . . . . Alert | -11 -10 -10 -10 -9 -8 -7 -7 -7 -7 -6 -6 -6 -6 -5 -5 -5 -4 -3 -3 -2 -1 ------- Run | Jun Mat Min Exi Min Mat Fac Gar Fac DSF Fac Low Low Dat Pro Fac Ext Fac Res Qua Res Acc Peak Influence 2062 | . 51 65 . 116 470 152 697 365 492 619 . . . . 372 505 519 607 2062 1265 868 Initial 1120 | . . 19 . . 44 115 . 365 255 258 . . . . 207 154 247 84 186 1120 721 Average 369 | . 15 18 . 64 257 59 434 365 368 354 . . . . 255 303 349 280 1827 1147 755 Maximum Alert Level 5 | . . . . . 2 . 2 1 2 2 . . . . 1 2 2 2 5 4 3 Low Security (%) 40 | 100 100 100 . 100 28 100 27 . . 17 . . . . 2 24 13 32 . . . Level 1 32 | . . . . . 60 . 4 100 89 56 . . . . 97 61 44 38 . . . Level 2 14 | . . . . . 11 . 68 . 10 25 . . . . . 13 42 28 . . . Level 3 2 | . . . . . . . . . . . . . . . . . . . . 1 100 Level 4 4 | . . . . . . . . . . . . . . . . . . . . 98 . Level 5 . | . . . . . . . . . . . . . . . . . . . . . . High Security . | . . . . . . . . . . . . . . . . . . . . . . Max Security 4 | . . . . . . . . . . . . . . . . . . . 99 . . Sterilizations 1 | . . . . . . . . . 1 . . . . . . . . . . . . Squads Dispatched 69 | . 1 . . . 4 5 . . 2 7 . 1 . 3 4 1 3 6 23 4 5 Investigation 12 | . . . . . 2 1 . . . 2 . . . . 2 . . 3 . . 2 Extermination 10 | . . . . . . 2 . . . 1 . . . . 1 . 1 2 . 2 1 Reinforcement 18 | . 1 . . . 1 2 . . 2 4 . . . . 1 1 1 1 2 . 2 Assault 28 | . . . . . . . . . . . . 1 . 3 . . 1 . 21 2 . Garrison 1 | . . . . . 1 . . . . . . . . . . . . . . . . Intercept . | . . . . . . . . . . . . . . . . . . . . . . Searches Triggered 1 | . . . . . . . . . . . . . . . . . . 1 . . . Data Miner Redirects 6 | . . . . . . . . . . . . . . . . . 1 2 . 2 1 Construction Impeded 3 | . . . . . 1 1 . . . . . . . . . . . . . . 1 Haulers Reinforced . | . . . . . . . . . . . . . . . . . . . . . . Active Scanning Responses . | . . . . . . . . . . . . . . . . . . . . . . Cargo Convoy Interrupts . | . . . . . . . . . . . . . . . . . . . . . . Stealth | -11 -10 -10 -10 -9 -8 -7 -7 -7 -7 -6 -6 -6 -6 -5 -5 -5 -4 -3 -3 -2 -1 --------- Run | Jun Mat Min Exi Min Mat Fac Gar Fac DSF Fac Low Low Dat Pro Fac Ext Fac Res Qua Res Acc Distress Signals 20 | . . 1 . . 7 1 . . . . . . . . . 3 2 4 2 . . Communications Jammed 10 | . . . . . . . . . . . . . . . . . . . 10 . . Distress Signals 10 | . . . . . . . . . . . . . . . . . . . 10 . . Times Spotted 414 | . 3 13 . 4 26 18 20 . 9 21 7 23 . 43 16 27 13 34 99 19 19 Peak Tracking Total 47 | . 4 6 . 4 5 4 5 . 4 4 9 8 . 23 10 6 8 21 47 11 14 Tactical Retreats 52 | . . 4 . . 2 2 . . 1 5 3 6 . 7 6 1 1 6 4 2 2 Traps | -11 -10 -10 -10 -9 -8 -7 -7 -7 -7 -6 -6 -6 -6 -5 -5 -5 -4 -3 -3 -2 -1 ------- Run | Jun Mat Min Exi Min Mat Fac Gar Fac DSF Fac Low Low Dat Pro Fac Ext Fac Res Qua Res Acc Traps Triggered 20 | . . . . . 1 3 5 . 2 4 . . . . 1 1 1 . 1 . 1 Indirectly . | . . . . . . . . . . . . . . . . . . . . . . Trap Hack Attempts 12 | . . . . . . . . . . 12 . . . . . . . . . . . Triggered . | . . . . . . . . . . . . . . . . . . . . . . Disarmed . | . . . . . . . . . . . . . . . . . . . . . . Reprogrammed 6 | . . . . . . . . . . 6 . . . . . . . . . . . Reused 1 | . . . . . . . . . . 1 . . . . . . . . . . . Traps Extracted . | . . . . . . . . . . . . . . . . . . . . . . Installed . | . . . . . . . . . . . . . . . . . . . . . . Triggered 2 | . . . . . . . . . 1 1 . . . . . . . . . . . Machines | -11 -10 -10 -10 -9 -8 -7 -7 -7 -7 -6 -6 -6 -6 -5 -5 -5 -4 -3 -3 -2 -1 ---------- Run | Jun Mat Min Exi Min Mat Fac Gar Fac DSF Fac Low Low Dat Pro Fac Ext Fac Res Qua Res Acc Machines Disabled 44 | . . . . . 6 . 5 . 1 16 . 1 . . . 3 2 2 7 1 . Max in Single Turn 7 | . . . . . 2 . 1 . . 7 . 1 . . . . 1 1 1 1 . Garrison Access 6 | . . . . . . . . . . 2 . . . . 1 . 1 1 . 1 . Garrison Relay 2 | . . . . . . . 2 . . . . . . . . . . . . . . Machines Repaired . | . . . . . . . . . . . . . . . . . . . . . . Machines Sabotaged . | . . . . . . . . . . . . . . . . . . . . . . Overloaded Fab Kills . | . . . . . . . . . . . . . . . . . . . . . . Hacking | -11 -10 -10 -10 -9 -8 -7 -7 -7 -7 -6 -6 -6 -6 -5 -5 -5 -4 -3 -3 -2 -1 --------- Run | Jun Mat Min Exi Min Mat Fac Gar Fac DSF Fac Low Low Dat Pro Fac Ext Fac Res Qua Res Acc Machines Accessed 102 | . 1 . 5 . 14 14 1 1 . 20 . 2 4 . 6 4 9 9 . 7 5 Terminals 55 | . 1 . . . 10 7 1 1 . 11 . . . . 2 4 6 5 . 4 3 Fabricators 6 | . . . . . . 1 . . . 2 . . . . 1 . 1 . . . 1 Repair Stations 7 | . . . . . 2 2 . . . 1 . . . . 1 . 1 . . . . Recycling Units 4 | . . . . . . 1 . . . 1 . . . . 1 . . 1 . . . Scanalyzers 12 | . . . . . 2 2 . . . 3 . . . . . . . 2 . 2 1 Garrison Access 7 | . . . . . . 1 . . . 2 . . . . 1 . 1 1 . 1 . Total Hacks 352 | . 6 . 50 . 52 32 2 2 . 52 . 2 29 . 20 10 29 31 . 22 13 Successful 217 | . 3 . 50 . 32 19 . 1 . 15 . 2 29 . 8 5 18 21 . 10 4 Failed 135 | . 3 . . . 20 13 2 1 . 37 . . . . 12 5 11 10 . 12 9 Catastrophic 33 | . . . . . 3 5 1 . . 15 . . . . 1 . 1 2 . 3 2 Database Lockouts . | . . . . . . . . . . . . . . . . . . . . . . Manual 52 | . 3 . 1 . 2 6 . . . 6 . . . . 3 2 11 8 . 7 3 Terminals 156 | . 6 . . . 27 18 2 2 . 28 . . . . 5 10 24 17 . 10 7 Fabricators 22 | . . . . . . 3 . . . 6 . . . . 8 . 2 . . . 3 Repair Stations 25 | . . . . . 10 4 . . . 6 . . . . 3 . 2 . . . . Recycling Units 10 | . . . . . . 3 . . . 2 . . . . 3 . . 2 . . . Scanalyzers 50 | . . . . . 15 2 . . . 8 . . . . . . . 11 . 11 3 Garrison Access 8 | . . . . . . 2 . . . 2 . . . . 1 . 1 1 . 1 . Terminal Hacks 136 | . 3 . 50 . 12 9 . 1 . 4 . 2 29 . 2 5 12 5 . 1 1 Record 72 | . 3 . 49 . 2 2 . . . 1 . 1 11 . . 1 2 . . . . Part Schematic 9 | . . . . . . . . . . . . . 9 . . . . . . . . Robot Schematic 6 | . . . . . . . . . . . . . 6 . . . . . . . . Robot Analysis 1 | . . . . . . . . . . . . . . . . . 1 . . . . Prototype ID Bank 10 | . . . . . 4 1 . . . . . . 3 . . . 2 . . . . Open Door 1 | . . . . . . . . . . . . 1 . . . . . . . . . Open DSF 3 | . . . . . . 1 . 1 . . . . . . . . . 1 . . . Level Access Points 1 | . . . . . . 1 . . . . . . . . . . . . . . . Branch Access Points 4 | . . . . . 1 1 . . . 1 . . . . . . . 1 . . . Emergency Access Points 3 | . . . . . . . . . . . . . . . . . 2 1 . . . Machine Index 2 | . . . . . . . . . . . . . . . . 1 1 . . . . Terminal Index 4 | . . . . . . 1 . . . . . . . . 1 1 . . . 1 . Fabricator Index 1 | . . . . . . 1 . . . . . . . . . . . . . . . Scanalyzer Index 2 | . . . . . . . . . . 1 . . . . . . . 1 . . . Alert Level 3 | . . . . . 1 . . . . . . . . . 1 . 1 . . . . Unreport Threat 2 | . . . . . 1 . . . . . . . . . . . 1 . . . . Reprogram Traps 1 | . . . . . . . . . . 1 . . . . . . . . . . . Dispatch Records 2 | . . . . . 2 . . . . . . . . . . . . . . . . Security Status 1 | . . . . . . . . . . . . . . . . . . . . . 1 Recall Reinforcements 2 | . . . . . . . . . . . . . . . . 1 1 . . . . Registered Components 1 | . . . . . 1 . . . . . . . . . . . . . . . . Zone Layout 4 | . . . . . . 1 . . . . . . . . . 1 1 1 . . . EX-Prototype ID Bank 1 | . . . 1 . . . . . . . . . . . . . . . . . . Fabricator Hacks 8 | . . . . . . 3 . . . . . . . . 3 . 1 . . . 1 Network Status 1 | . . . . . . 1 . . . . . . . . . . . . . . . Load Schematic 4 | . . . . . . 1 . . . . . . . . 1 . 1 . . . 1 Build 3 | . . . . . . 1 . . . . . . . . 2 . . . . . . Repair Station Hacks 17 | . . . . . 7 4 . . . 3 . . . . 1 . 2 . . . . Scan Component 9 | . . . . . 4 2 . . . 2 . . . . . . 1 . . . . Repair 7 | . . . . . 3 2 . . . 1 . . . . . . 1 . . . . Refit 1 | . . . . . . . . . . . . . . . 1 . . . . . . Recycling Unit Hacks 6 | . . . . . . 2 . . . 2 . . . . . . . 2 . . . Report Inventory 2 | . . . . . . 1 . . . 1 . . . . . . . . . . . Retrieve Components 4 | . . . . . . 1 . . . 1 . . . . . . . 2 . . . Scanalyzer 35 | . . . . . 13 . . . . 4 . . . . . . . 10 . 6 2 Insert Component 16 | . . . . . 6 . . . . 2 . . . . . . . 4 . 3 1 Analyze 19 | . . . . . 7 . . . . 2 . . . . . . . 6 . 3 1 Garrison Access Hacks 7 | . . . . . . 1 . . . 2 . . . . 1 . 1 1 . 1 . Unlock Access 1 | . . . . . . 1 . . . . . . . . . . . . . . . Seal Access 6 | . . . . . . . . . . 2 . . . . 1 . 1 1 . 1 . Unauthorized Hacks 8 | . . . . . . . . . . . . . . . 1 . 2 3 . 2 . Terminals 8 | . . . . . . . . . . . . . . . 1 . 2 3 . 2 . Assimilate 8 | . . . . . . . . . . . . . . . 1 . 2 3 . 2 . Fabricators . | . . . . . . . . . . . . . . . . . . . . . . Repair Stations . | . . . . . . . . . . . . . . . . . . . . . . Recycling Units . | . . . . . . . . . . . . . . . . . . . . . . Scanalyzers . | . . . . . . . . . . . . . . . . . . . . . . Garrison Access . | . . . . . . . . . . . . . . . . . . . . . . Data Cores Recovered 1 | . . . . . 1 . . . . . . . . . . . . . . . . Used . | . . . . . . . . . . . . . . . . . . . . . . Hacking Detections 78 | . 1 . . . 14 11 1 1 . 15 . . . . 5 4 8 7 . 6 5 Full Trace Events 10 | . . . . . 2 1 . . . 1 . . . . 2 . . 3 . . 1 Feedback Events 1 | . . . . . . . . . . . . . . . . . . 1 . . . Corruption 1 | . . . . . . . . . . . . . . . . . . 1 . . . Feedback Blocked . | . . . . . . . . . . . . . . . . . . . . . . Robot Schematics Acquired 7 | . . . . . . . . . . . . . 6 . . . . . 1 . . Robots Built . | . . . . . . . . . . . . . . . . . . . . . . Authchips . | . . . . . . . . . . . . . . . . . . . . . . Time . | . . . . . . . . . . . . . . . . . . . . . . Total Robot Build Rating . | . . . . . . . . . . . . . . . . . . . . . . Part Schematics Acquired 27 | . . . . . 5 . . . . 2 . . 9 . . . . 3 5 2 1 Parts Built 5 | . . . . . . 2 . . . . . . . . 3 . . . . . . Authchips . | . . . . . . . . . . . . . . . . . . . . . . Time 237 | . . . . . . 25 . . . . . . . . 212 . . . . . . Total Part Build Rating 21 | . . . . . . 2 . . . . . . . . 19 . . . . . . Parts Repaired 7 | . . . . . 3 2 . . . 1 . . . . . . 1 . . . . Time 194 | . . . . . 96 41 . . . 26 . . . . . . 31 . . . . Parts Recycled . | . . . . . . . . . . . . . . . . . . . . . . Recycled Matter . | . . . . . . . . . . . . . . . . . . . . . . Retrieved Matter . | . . . . . . . . . . . . . . . . . . . . . . Retrieved Components 19 | . . . . . . 10 . . . 9 . . . . . . . . . . . Parts Scanalyzed 16 | . . . . . 6 . . . . 2 . . . . . . . 4 . 3 1 Part Schematics Acquired 13 | . . . . . 5 . . . . 2 . . . . . . . 3 . 2 1 Parts Damaged 2 | . . . . . . . . . . . . . . . . . . . . 1 1 Bothacking | -11 -10 -10 -10 -9 -8 -7 -7 -7 -7 -6 -6 -6 -6 -5 -5 -5 -4 -3 -3 -2 -1 ------------ Run | Jun Mat Min Exi Min Mat Fac Gar Fac DSF Fac Low Low Dat Pro Fac Ext Fac Res Qua Res Acc Used RIF Installer 1 | . . . . . . . 1 . . . . . . . . . . . . . . Robots Hacked 2 | . . . . . . . . . . 2 . . . . . . . . . . . Non-combat . | . . . . . . . . . . . . . . . . . . . . . . Combat 2 | . . . . . . . . . . 2 . . . . . . . . . . . Robot Hacks Applied 2 | . . . . . . . . . . 2 . . . . . . . . . . . link_fov 1 | . . . . . . . . . . 1 . . . . . . . . . . . formatsys_high 1 | . . . . . . . . . . 1 . . . . . . . . . . . Relay Couplers Released 8 | . . . . . . . 6 . . . . . . . . . 2 . . . . Machine Destruction 8 | . . . . . . . 6 . . . . . . . . . 2 . . . . Attached 2 | . . . . . . . 1 . . 1 . . . . . . . . . . . Fabnet Peak Effective % . | . . . . . . . . . . . . . . . . . . . . . . Robots Rewired 21 | . . . . . . 1 . . . . . . . . . 20 . . . . . Allies Hacked 4 | . . . . . . . 2 . . 1 . . . . . . . . . 1 . Hacks Repelled . | . . . . . . . . . . . . . . . . . . . . . . Allies | -11 -10 -10 -10 -9 -8 -7 -7 -7 -7 -6 -6 -6 -6 -5 -5 -5 -4 -3 -3 -2 -1 -------- Run | Jun Mat Min Exi Min Mat Fac Gar Fac DSF Fac Low Low Dat Pro Fac Ext Fac Res Qua Res Acc Total Allies 49 | . . 3 . . 1 4 4 . . 2 . . . 1 . 30 1 1 . 2 . Largest Group 12 | . . 3 . . 1 1 4 3 3 4 . . . 1 . 12 11 1 . 1 . Highest-Rated Group 444 | . . 40 . . 15 37 207 194 194 225 . . . 96 . 444 444 26 . 45 . Highest-Rated Ally 159 | . . 16 . . 15 37 95 95 95 95 . . . 96 . 159 159 26 . 45 . Total Orders 3 | . . . . . . . 1 . . 1 . . . . . . . 1 . . . FOLLOW 2 | . . . . . . . 1 . . . . . . . . . . 1 . . . GUARD 1 | . . . . . . . . . . 1 . . . . . . . . . . . Ally Attacks 302 | . . 15 . . 6 9 37 . 35 25 . . . 20 . 113 42 . . . . Total Damage 7281 | . . 123 . . 99 93 1236 . 1213 306 . . . 1227 . 2291 693 . . . . Kills 65 | . . 3 . . 1 2 14 . 7 4 . . . 6 . 21 7 . . . . Allies Corrupted 1 | . . . . . . . . . . . . . . . . . 1 . . . . Allies Melted 1 | . . . . . . . . . . . . . . 1 . . . . . . . Field Lobotomies 4 | . . . . . 1 3 . . . . . . . . . . . . . . . Intel | -11 -10 -10 -10 -9 -8 -7 -7 -7 -7 -6 -6 -6 -6 -5 -5 -5 -4 -3 -3 -2 -1 ------- Run | Jun Mat Min Exi Min Mat Fac Gar Fac DSF Fac Low Low Dat Pro Fac Ext Fac Res Qua Res Acc Robot Analysis Total 1 | . . . . . . . . . . . . . . . . . 1 . . . . Derelict Logs Recovered 7 | . . 1 . 1 . . . . . . 3 1 . 1 . . . . . . . Drone Launches . | . . . . . . . . . . . . . . . . . . . . . . Drone Recoveries . | . . . . . . . . . . . . . . . . . . . . . . Decoded 0b10 Intel 82 | . . . . . . . . . . . . . . . 11 14 11 14 14 11 7 Traps 13 | . . . . . . . . . . . . . . . 1 3 1 4 3 1 . Emergency Access 5 | . . . . . . . . . . . . . . . 2 1 1 1 . . . Items 54 | . . . . . . . . . . . . . . . 5 10 7 8 8 9 7 Machines 8 | . . . . . . . . . . . . . . . 1 . 2 1 3 1 . Patrols 1 | . . . . . . . . . . . . . . . 1 . . . . . . Guards 1 | . . . . . . . . . . . . . . . 1 . . . . . . Exploration | -11 -10 -10 -10 -9 -8 -7 -7 -7 -7 -6 -6 -6 -6 -5 -5 -5 -4 -3 -3 -2 -1 ------------- Run | Jun Mat Min Exi Min Mat Fac Gar Fac DSF Fac Low Low Dat Pro Fac Ext Fac Res Qua Res Acc Turns Passed 11113 | 34 35 602 375 350 1371 1628 550 8 108 1450 373 534 26 219 488 661 493 605 467 471 265 Spaces Moved 16489 | 30 32 572 467 321 1415 1480 905 15 71 2760 1057 1233 90 648 848 957 878 799 732 744 435 Core 694 | 1 . . . . . 13 . . . 50 . . . 36 191 1 . . 26 188 188 Treads . | . . . . . . . . . . . . . . . . . . . . . . Legs . | . . . . . . . . . . . . . . . . . . . . . . Wheels 2220 | 29 32 572 467 321 799 . . . . . . . . . . . . . . . . Hover 1673 | . . . . . 616 686 . . . . . . . 5 . . . . . 119 247 Flight 11902 | . . . . . . 781 905 15 71 2710 1057 1233 90 607 657 956 878 799 706 437 . Fastest Speed 26 | 50 90 80 80 80 51 29 29 29 29 29 30 28 29 26 37 37 37 37 37 40 40 Average Speed 44 | 89 90 86 80 80 68 52 29 29 31 34 31 30 29 31 41 37 37 37 39 47 52 Slowest Speed 200 | 100 90 90 80 80 100 200 29 29 32 100 32 35 29 70 50 100 37 39 150 150 150 Overloaded Moves 389 | . . . . . . . . . . . . 80 . 309 . . . . . . . Propulsion Burnouts . | . . . . . . . . . . . . . . . . . . . . . . Robots Hopped 82 | . . . . . . 12 . . . 23 1 1 . 4 9 10 8 9 4 1 . Cave-ins Triggered . | . . . . . . . . . . . . . . . . . . . . . . Teleports 4 | . . . . . . . . . . . . . . . . . . . 4 . . Exploration Rate (%) 52 | 3 14 85 91 51 84 28 72 1 65 63 93 89 75 85 17 86 19 28 67 17 14 Regions Visited 21 Branch Regions 9 Pre-discovered Areas 4 | . . . 1 . . . . . . . 2 . 1 . . . . . . . . Known Exits Taken 7 | . . . . . 1 1 . 1 . 1 . . . . 1 1 . 1 . . . Unknown Exits Taken 12 | 1 1 1 1 1 . . . . . . 1 1 1 1 . . 1 . 1 1 . Scrap Searched 14 | . . 2 . 1 . . . . . . 5 4 . 2 . . . . . . . Spaces Dug 49 | . . . . . 22 . . . . 2 . . . . . . . 4 3 14 4 Terrain Destroyed 428 | . . . . 34 238 21 . . . 86 . 8 . . . 1 1 5 10 20 4 Melee . | . . . . . . . . . . . . . . . . . . . . . . Projectile 53 | . . . . . . . . . . 4 . 8 . . . 1 1 5 10 20 4 AOE 375 | . . . . 34 238 21 . . . 82 . . . . . . . . . . . Terrain Rammed . | . . . . . . . . . . . . . . . . . . . . . . Walls Destroyed . | . . . . . . . . . . . . . . . . . . . . . . Machines Disabled . | . . . . . . . . . . . . . . . . . . . . . . Actions | -11 -10 -10 -10 -9 -8 -7 -7 -7 -7 -6 -6 -6 -6 -5 -5 -5 -4 -3 -3 -2 -1 --------- Run | Jun Mat Min Exi Min Mat Fac Gar Fac DSF Fac Low Low Dat Pro Fac Ext Fac Res Qua Res Acc Total 19579 | 34 34 648 468 408 1731 2250 1165 17 135 3135 1077 1356 89 649 975 1207 998 1043 863 827 470 Wait 1815 | . . 20 . 74 167 630 125 3 . 203 5 53 . 2 115 98 68 172 42 22 16 Move 16313 | 29 31 571 466 320 1414 1456 904 14 70 2715 1054 1230 89 639 830 939 861 782 723 741 435 Hop 74 | . . . . . . 12 . . . 21 1 1 . 4 8 7 8 7 4 1 . Pick Up 85 | . 1 7 1 2 11 16 6 . 2 11 2 2 . . 2 2 4 5 3 7 1 Fast Attach 204 | 5 . 4 . 2 19 28 1 . 3 23 1 17 . 1 12 24 9 18 19 13 5 Attach 61 | . . . . . 11 16 7 . 2 7 1 1 . . 2 . 1 3 4 5 1 Detach 57 | . . 1 . . 10 9 6 . 1 10 1 . . . . 4 . 5 6 1 3 Swap 59 | . . 9 . 1 9 7 5 . . 12 1 3 . . . . 4 6 1 1 . Drop 194 | . . 13 1 5 22 22 8 . 1 24 3 15 . . 6 19 11 16 14 10 4 Fire 438 | . 2 23 . 4 68 49 32 . 20 54 8 34 . 3 . 27 24 29 31 26 4 Melee 6 | . . . . . . . . . . 6 . . . . . . . . . . . Ram 5 | . . . . . . 3 . . . . . . . . . . . . 1 . 1 Kick . | . . . . . . . . . . . . . . . . . . . . . . Crush . | . . . . . . . . . . . . . . . . . . . . . . Escape Stasis 184 | . . . . . . . 71 . 36 36 . . . . . 18 8 . 15 . . Rewire 72 | . . . . . . 2 . . . 1 . . . . . 69 . . . . . Trap 12 | . . . . . . . . . . 12 . . . . . . . . . . . Miscellaneous . | . . . . . . . . . . . . . . . . . . . . . . Route ------- -11/Junkyard -10/Materials -10/Mines (discovered 3 exits: [*Mat x2] / *Exi) -10/Exiles -9/Mines -8/Materials (discovered 4 exits: *Fac x2 / *Sto x2) -7/Factory (discovered 7 exits: *Fac x4 / Low x2 / Gar) -7/Garrison (discovered 3 exits: *Fac x3) -7/Factory -7/DSF -6/Factory (discovered 5 exits: *Fac x3 / *Low x2) -6/Lower Caves -6/Lower Caves (discovered 2 exits: *Fac / *Dat) -6/Data Miner -5/Proximity Caves -5/Factory (discovered 3 exits: Fac / *Ext x2) -5/Extension (discovered 2 exits: *Fac / [*Cet]) -4/Factory -3/Research (discovered 4 exits: *Res / Arm / *Qua x2) -3/Quarantine -2/Research -1/Access History --------- Turn | Location | Event 14 | -11/Junkyard | Discovered new exit (range 16) 35 | -11/Junkyard | Entered Materials 55 | -10/Materials | Discovered new exit (range 12) 70 | -10/Materials | Entered Mines 123 | -10/Mines | Assembled infested the area 135 | -10/Mines | Assisted by bots powering up and referring to "LRC-V3" 292 | -10/Mines | Discovered new exit (range 9) 302 | -10/Mines | Build established: Mutant 362 | -10/Mines | Learned location of 1 exit from Materials 520 | -10/Mines | Discovered new exit (range 9) 645 | -10/Mines | Build established: Scavenger-Mutant 669 | -10/Mines | Deemed a non-threat by the Exiles lab entrance 669 | -10/Mines | Discovered new exit (range 5) 672 | -10/Mines | Entered Exiles 692 | -10/Exiles | Met 8R-AWN 704 | -10/Exiles | Met EX-HEX 731 | -10/Exiles | Met EX-BIN 743 | -10/Exiles | Aligned with FarCom system 744 | -10/Exiles | Given EX-Vault access code 777 | -10/Exiles | Opened EX-Vault 783 | -10/Exiles | Found Field Lobotomy Kit 802 | -10/Exiles | Warned to stay clear of 0b10 Research branches 829 | -10/Exiles | Learned location of Zion (-7) 831 | -10/Exiles | Met EX-DEC 861 | -10/Exiles | Visited The Gauntlet 1038 | -10/Exiles | Discovered new exit (range 14) 1047 | -10/Exiles | Left Exiles lab with Field Lobotomy Kit 1047 | -10/Exiles | Entered Mines 1152 | -9/Mines | Learned location of 1 exit from Materials 1164 | -9/Mines | Received a Rocket Launcher from a helpful Derelict 1177 | -9/Mines | Discovered new exit (range 14) 1256 | -9/Mines | A weapon hastily lodged in a ceiling crevice suddenly fell to the ground 1336 | -9/Mines | Build established: Scavenger-Skirmisher 1397 | -9/Mines | Entered Materials 1397 | -8/Materials | Evolved 4 slots: Utility x4 1398 | -8/Materials | Identified exit to Factory 1398 | -8/Materials | Identified exit to Storage 1526 | -8/Materials | Repaired Hrd. Light Armor Plating 1567 | -8/Materials | Repaired Lgt. Nuclear Core 1596 | -8/Materials | Repaired Wheel 1622 | -8/Materials | Assimilated Y-45 Defender with FLK Orb 2282 | -8/Materials | Build established: Scavenger-Mutant 2315 | -8/Materials | Garrison activated, responded to threat 2336 | -8/Materials | Destroyed 8 combat bots 2467 | -8/Materials | Discovered exit to Factory (range 9) 2670 | -8/Materials | Build established: Mutant 2768 | -8/Materials | Entered Factory 2768 | -7/Factory | Evolved 2 slots: Power x1, Propulsion x1 2784 | -7/Factory | Identified exit to Lower Caves 3280 | -7/Factory | Repaired Airjet 3619 | -7/Factory | Assimilated P-60 Hacker with FLK Orb 3893 | -7/Factory | Fabricated Utility Shielding (x2) 3958 | -7/Factory | Core integrity fell below 50% 3965 | -7/Factory | Assimilated S-27 Virus with FLK Orb 3995 | -7/Factory | Lost 12 parts (2p3n3u4w) 4033 | -7/Factory | Repaired Corrupted VTOL Module 4176 | -7/Factory | Identified exit to Factory 4374 | -7/Factory | Assimilated P-60 Hacker with FLK Orb 4396 | -7/Factory | Identified exit to Garrison 4396 | -7/Factory | Entered Garrison 4396 | -7/Garrison | Accompanied by 1 ally 4422 | -7/Garrison | Triggered checkpoint 4460 | -7/Garrison | Build established: Scavenger-Sprinter 4464 | -7/Garrison | Found embedded Infiltrators 4483 | -7/Garrison | Garrison Relay disabled 4540 | -7/Garrison | Triggered checkpoint 4548 | -7/Garrison | Triggered checkpoint 4566 | -7/Garrison | Triggered checkpoint 4585 | -7/Garrison | Hacker 4b assimilated hostile G-47 Trooper 4614 | -7/Garrison | Discovered new exit (range 8) 4695 | -7/Garrison | Discovered new exit (range 15) 4705 | -7/Garrison | Triggered checkpoint 4828 | -7/Garrison | Discovered new exit (range 12) 4848 | -7/Garrison | Installed Relay Interface Framework 4914 | -7/Garrison | Garrison Relay disabled 4946 | -7/Garrison | Entered Factory 4946 | -7/Factory | Accompanied by 3 allies 4949 | -7/Factory | Identified exit to DSF 4954 | -7/Factory | Entered DSF 4954 | -7/DSF | Accompanied by 3 allies 4979 | -7/DSF | Additional patrols routed to DSF 4989 | -7/DSF | Discovered exit to Factory (range 15) 5036 | -7/DSF | Lost 4 parts (1p1n1u1w) 5045 | -7/DSF | Core integrity fell below 20% 5062 | -7/DSF | Sterilization system engaged 5062 | -7/DSF | Entered Factory 5062 | -6/Factory | Accompanied by 3 allies 5062 | -6/Factory | Evolved 2 slots: Utility x2 5108 | -6/Factory | Discovered new exit (range 6) 5118 | -6/Factory | Hacker 4b assimilated hostile Y-54 Guardian 5426 | -6/Factory | Repaired Broken Adv. Weight Redist. System? 5655 | -6/Factory | Build established: Sprinter 6189 | -6/Factory | Build established: Hacker-Mutant 6324 | -6/Factory | Discovered new exit (range 6) 6357 | -6/Factory | Discovered new exit (range 7) 6424 | -6/Factory | Identified exit to Lower Caves 6478 | -6/Factory | Discovered new exit (range 5) 6512 | -6/Factory | Entered Lower Caves 6531 | -6/Lower Caves | Learned 8 Factory zone layouts 6609 | -6/Lower Caves | Learned location of Extension (-5) 6741 | -6/Lower Caves | Build established: Hacker-Sprinter 6746 | -6/Lower Caves | Discovered new exit (range 9) 6885 | -6/Lower Caves | Entered another Lower Caves area 6904 | -6/Lower Caves | Discovered new exit (range 6) 6905 | -6/Lower Caves | Encountered a Warlord checkpoint 7013 | -6/Lower Caves | Lost 3 parts (1n2w) 7156 | -6/Lower Caves | Found Alien Artifact 7247 | -6/Lower Caves | Attracted the attention of an 0b10 outpost 7338 | -6/Lower Caves | Discovered new exit (range 7) 7409 | -6/Lower Caves | Learned Factory garrison access intel 7419 | -6/Lower Caves | Entered Data Miner 7419 | -6/Data Miner | Discovered new exit (range 6) 7425 | -6/Data Miner | Met Data Miner 7433 | -6/Data Miner | Learned location of Section 7 (-3) 7433 | -6/Data Miner | Acquired the access code to Warlord's prototype stash 7435 | -6/Data Miner | Received God Mode back door access code from Data Miner 7445 | -6/Data Miner | Entered Proximity Caves 7446 | -5/Proximity Caves | Derelict sapper outpost attacked 7468 | -5/Proximity Caves | Attracted the attention of an 0b10 outpost 7476 | -5/Proximity Caves | Attracted the attention of an 0b10 checkpoint 7492 | -5/Proximity Caves | Escorted by Enhanced Grunt 7627 | -5/Proximity Caves | Learned Factory security intel 7640 | -5/Proximity Caves | Core integrity fell below 50% 7650 | -5/Proximity Caves | Core integrity fell below 20% 7660 | -5/Proximity Caves | Discovered new exit (range 7) 7664 | -5/Proximity Caves | Entered Factory 7664 | -5/Factory | Evolved 2 slots: Propulsion x1, Utility x1 7665 | -5/Factory | Identified exit to Factory 7665 | -5/Factory | Identified exit to Extension 7667 | -5/Factory | Loaded intel: 4 garrison access locations 7684 | -5/Factory | Lost 9 parts (1p2n4u2w) 7832 | -5/Factory | Fabricated Field Propulsion Array (x2) 7931 | -5/Factory | Fabricated Imp. Hacking Suite? 7958 | -5/Factory | Build established: Mutant 8149 | -5/Factory | Discovered exit to Extension (range 10) 8152 | -5/Factory | Entered Extension 8181 | -5/Extension | Rescued a captive Derelict 8181 | -5/Extension | Rescued a captive Derelict 8192 | -5/Extension | Rescued a captive Derelict 8233 | -5/Extension | Rescued a captive Derelict 8392 | -5/Extension | Rescued a captive Derelict 8441 | -5/Extension | Spotted B-75 Beast 8451 | -5/Extension | Spotted B-75 Beast 8499 | -5/Extension | Rescued A7 8512 | -5/Extension | Rescued a captive Derelict 8525 | -5/Extension | Rescued a captive Derelict 8533 | -5/Extension | Rescued a captive Derelict 8533 | -5/Extension | Rescued a captive Derelict 8672 | -5/Extension | Discovered exit to Factory (range 10) 8673 | -5/Extension | Discovered new exit (range 6) 8813 | -5/Extension | Entered Factory 8813 | -4/Factory | Accompanied by 11 allies (A7) 8813 | -4/Factory | Evolved 2 slots: Utility x2 8818 | -4/Factory | Identified Dimensional Node Initializer 8818 | -4/Factory | Initialized slip node 8879 | -4/Factory | Spotted B-86 Titan 8948 | -4/Factory | Discovered new exit (range 5) 8999 | -4/Factory | Build established: Commander-Mutant 9063 | -4/Factory | First assault squad dispatched 9118 | -4/Factory | Repaired Field Propulsion Array 9277 | -4/Factory | Incoming assault squad redirected 9300 | -4/Factory | Build established: Hacker-Mutant 9306 | -4/Factory | Entered Research 9306 | -3/Research | Accompanied by 1 ally 9306 | -3/Research | Evolved 2 slots: Utility x2 9317 | -3/Research | Identified exit to DSF 9460 | -3/Research | Identified exit to Armory 9460 | -3/Research | Identified exit to Quarantine 9477 | -3/Research | Spotted B-86 Titan 9550 | -3/Research | Incoming investigation squad redirected 9559 | -3/Research | Incoming investigation squad redirected 9615 | -3/Research | Lost 3 parts (2u1w) 9709 | -3/Research | Discovered new exit (range 7) 9806 | -3/Research | Search patrols dispatched 9911 | -3/Research | Entered Quarantine 9912 | -3/Quarantine | Maximum security lockdown engaged 9938 | -3/Quarantine | Found Alien Artifact 9938 | -3/Quarantine | Identified Hpw. Transdimensional Reconstructor 9938 | -3/Quarantine | Warped through subspace 9946 | -3/Quarantine | Found Alien Artifact 9946 | -3/Quarantine | Identified Phase Armor 9983 | -3/Quarantine | Found Dimensional Node Initializer 9983 | -3/Quarantine | Initialized slip node 9985 | -3/Quarantine | Found Dimensional Node Initializer 9985 | -3/Quarantine | Initialized slip node 9987 | -3/Quarantine | Found Dimensional Node Initializer 9987 | -3/Quarantine | Initialized slip node 9994 | -3/Quarantine | Found Alien Artifact 9994 | -3/Quarantine | Identified Transdimensional Reconstructor 9994 | -3/Quarantine | Warped through subspace to slip node 9999 | -3/Quarantine | Found Transdimensional Reconstructor 10001 | -3/Quarantine | Found Hpw. Transdimensional Reconstructor 10089 | -3/Quarantine | Scanned by Researcher 10111 | -3/Quarantine | Found Alien Artifact 10111 | -3/Quarantine | Identified Terrabomb 10111 | -3/Quarantine | Used Terrabomb 10112 | -3/Quarantine | Warped through subspace to slip node 10234 | -3/Quarantine | Found Alien Artifact 10275 | -3/Quarantine | Found Alien Reactor 10275 | -3/Quarantine | Identified Matter Drive 10288 | -3/Quarantine | Identified Subatomic Replicator 10288 | -3/Quarantine | Warped through subspace to slip node 10336 | -3/Quarantine | Spotted Executioner 10346 | -3/Quarantine | Spotted Investigator 10372 | -3/Quarantine | Core integrity fell below 50% 10373 | -3/Quarantine | Discovered new exit (range 11) 10377 | -3/Quarantine | Spotted Alpha 7 10378 | -3/Quarantine | Entered Research 10378 | -2/Research | Evolved 2 slots: Utility x2 10408 | -2/Research | Lost 7 parts (2n5u) 10592 | -2/Research | Found Prototype Device 10592 | -2/Research | Identified Exp. Thermal Shield 10664 | -2/Research | First assault squad dispatched 10679 | -2/Research | Used Subatomic Replicator to replicate Com. Linear Accelerator 10776 | -2/Research | Incoming assault squad redirected 10776 | -2/Research | Incoming assault squad redirected 10831 | -2/Research | Discovered new exit (range 10) 10849 | -2/Research | Entered Access 10849 | -1/Access | Evolved 2 slots: Propulsion x2 11046 | -1/Access | Lost 6 parts (2n3u1w) 11063 | -1/Access | Core integrity fell below 50% 11083 | -1/Access | Core integrity fell below 20% 11111 | -1/Access | Incoming investigation squad redirected 11111 | -1/Access | Lost 5 parts (5u) 11114 | -1/Access | Destroyed by H-88 Terminator with KE Penetrator Last Messages --------------- 11082_ Penetrated by Slug. 11084_ K-01 Serf collects debris. 11090_ ALERT: Security rotation in progress. 11090_ Triggered Alarm Trap. 11090_ An alarm sounds. 11090_ ALERT: Alarm triggered, dispatching investigation squad. 11099_ ALERT: Rogue bot located, Q-Series report to Access Zone 3P. 11100_ Connecting with Terminal... 11100_ ALERT: Suspicious activity at Terminal A007. Dispatching Investigation squad. 11103_ Acquired Linear Gravjet. 11109_ &HVRKUI2H8BO|=MHF9>R5&J0BI 11111_ ALERT: Higher priority target reported, redirecting investigation. 11111_ Penetrated by Slug. 11111_ Slug penetrates Wall. 11111_ U-05 Engineer suffers critical hit (Destroy). 11114_ Penetrated by Slug. [Achievement: 20k Club] [Achievement: Just Browsing] [Achievement: Achiever] Map ----- +----------------------------------------------------+ | ?????????????????????????????????# # "" | | ?????????????????????????????????# + | | ?????????????????????????????????# !# | | ?????????????????????????????????# !%#?? | | ?????????????????????????????????# !#???? | | ?????????????????????????????????# #?####### | | ?????????????????????????????????# # ! | | ?????????????????????????????????# # | | ?????????????????????????????????# / | | ?????????????????????????????????# # " | | ?????????????????????????????????# # """ | | ?????????????????????????????????# = #? """ | | ?????????????????????????""""????# ! #? " ? | | ????????????????????# """""??# #?? | | ????????????????????# # #?? | | ????????????????????# + #??? [ | | ????????????????????# # #??? | | ????????????????????# ??# #???? | | ????????????####+#################k #???? | | ???????????? #?????### | | ???????????? u h #???????? | | ??????????? h #???????? | | ??????????? k #???????? | | ?????????? #???????? | | ?????????? #???????? | | ?????????? @ #???????? | | ?????????????????########## ########???????? | | ??????????????????????????# u #] ??????????? | | ??????????????????????????# # ??????????? | | ??????????????????????????# # ???????????? | | ??????????????????????????# # ???????????? | | ??????????????????????????# s##+#???????????? | | ??????????????????????????# s #???????????? | | ????????????????????????###"##p#####+#???????????? | | ????????????????????????# p s #???????????? | | ????????????????????????# s #???????????? | | ????????????????????????# #???????????? | | ????????????????????????# """""" #???????????? | | ????????????????????????# """""" #???????????? | | ????????????????????????#"" """""" #???????????? | | ????????????????????????#"" """""" #???????????? | | ????????????????????????#"T """""" #???????????? | | ????????????????????????#"" #???????????? | | ????????????????????????#"" #???????????? | | ????????????????????????# #???????????? | | ????????????????????????# ! #???????????? | | ????????????????????????##############???????????? | | ?????????????????????????????????????????????????? | | ?????????????????????????????????????????????????? | | ?????????????????????????????????????????????????? | +----------------------------------------------------+ Best States ------------- Heat Dissipation 68 Energy Generation 38 Energy Capacity 550 Matter Stores 443 Matter Capacity 450 Sight Range 22 Terrain Scan Range 20 Terrain Scan Density 185 ECM Strength 2 Jamming Range 14 Cloak Strength 3 Power Amplification 40 Additional Mass Support 12 EM Shielding 3 Corruption Block 20 Armor Coverage 300 Resistance: KI 20 Core Shielding 30 Propulsion Shielding 33 Utility Shielding 33 Weapon Cycling 20 Evasion (%) 74 Targeting Accuracy 18 Target Analysis 12 Core Analysis 9 Matter Filtering 30 Particle Charging 15 Kinecelleration 30 Offensive Hacking 48 Defensive Hacking 24 Relay Coupler Types 1 Relay Coupler Value 31 Authchip Count 2 Item Schematics ----------------- Enh. Flamer | -8/Materials | Scanalyzed Adv. Weight Redist. System | -8/Materials | Scanalyzed Utility Shielding | -8/Materials | Scanalyzed ECM Suite | -8/Materials | Scanalyzed Hrd. Light Armor Plating | -8/Materials | Scanalyzed Imp. Hacking Suite | -6/Factory | Scanalyzed System Shield | -6/Factory | Scanalyzed Combat Drone Bay | -6/Data Miner | Free Lgt. Regenerative Plating | -6/Data Miner | Free Cld. Gravmag System | -6/Data Miner | Free Imp. Thermal Defense Suite | -6/Data Miner | Free Tri-rail Accelerator | -6/Data Miner | Free Field Propulsion Array | -6/Data Miner | Free Graphene Brace | -6/Data Miner | Free Phase Gun | -6/Data Miner | Free Particle Reactor | -6/Data Miner | Free Quantum Rifle | -3/Research | Scanalyzed Imp. System Restoration Module | -3/Research | Scanalyzed Lrn. Sensor Array | -3/Research | Scanalyzed Centrium Medium Armor Plating | -3/Quarantine | Archive Lrn. Phase Cannon | -3/Quarantine | Archive Kinetic Spear | -3/Quarantine | Archive Exp. Energy Well | -3/Quarantine | Archive Exp. Terrain Scanner | -3/Quarantine | Archive Adv. System Shield | -2/Research | Scanalyzed Com. Linear Accelerator | -2/Research | Scanalyzed Lgt. Quantum Reactor | -1/Access | Scanalyzed Robot Schematics ------------------ L-41 Fighter | -6/Data Miner | Free A-15 Conveyor | -6/Data Miner | Free D-63 Destroyer | -6/Data Miner | Free G-50 Soldier | -6/Data Miner | Free G-67 Veteran | -6/Data Miner | Free B-60 Warrior | -6/Data Miner | Free R-06 Scavenger | -3/Quarantine | Archive Fabricated ------------ Utility Shielding | x2 | -7/Factory Field Propulsion Array | x2 | -5/Factory | Preloaded Imp. Hacking Suite | x1 | -5/Factory Alien Tech Used ----------------- Dimensional Node Initializer High-powered Transdimensional Reconstructor Phase Armor Transdimensional Reconstructor Terrabomb Matter Drive Subatomic Replicator Achievements -------------- 20k Club Achiever Alien Tech Dangerous Findings Decoder Ring Denied? Hunted I'm Back, Baby! Just Browsing More Dakka Please Ooh, Shiny! Prison Break Respectable Loadout Significant Disruption Subspace Traveler True Hacker Challenges ------------ None Game ------ Seed MyomerInsulationNanosword Manual? 0 Play Time 05:20:23 Cumulative 26.8 hours Start 2023.12.15 @ 00:09:16 End 2023.12.15 @ 05:33:46 Sessions 1 Manual Loads 0 Difficulty Rogue Special Mode None Game No. 13 Rogue 13 Adventurer 0 Explorer 0 Win Type - Total 0 Types 0/0/0/0/0/0/0/0/0 Lore% 20 Gallery% 27 Achievement% 28 Wizard Run 0 Options --------- ASCII 0 Keyboard 1 Movement Arrows Keybinds 0 Fullscreen 1 Font 12/Proggy Map View 83x54 Tactical HUD 1 Map Filters NONE Filters NONE Steam 0 RUN: 2237e93e-268d-4b2c-8fef-29f6941ca152